Cogmind - Beta 16 @@@ ROGUE MODE // 2026.01.10 @ 14:06:43 Player: leto Result: Core destroyed Performance ------------- Evolutions (0) 0 Regions Visited (2) 400 Robots Destroyed (32) 160 Value Destroyed (487) 487 Prototype IDs (0) 0 Alien Tech Used (0) 0 Bonus (0) 0 TOTAL SCORE: 1047 Bonus ------- None Cogmind --------- Core Integrity 0/250 Matter 150/300 Energy 21/100 System Corruption 2% Temperature Critical (552) Movement Core (200) Ox3 Location -10/Mines Parts ------- > --- POWER (1) -------- (None) > --- PROPULSION (2) --- (None) > --- UTILITY (2) ------ Small Storage Unit Terrain Scanner > --- WEAPON (2) ------- Small Laser Particle Gun > --- INVENTORY (8) ---- Wheel Wheel Structural Scanner Signal Interpreter Terrain Scan Processor Weapon Shielding Datajack Mining Claw Peak State ------------ > --- POWER ------------ Ion Engine > --- PROPULSION ------- Light Treads Light Treads > --- UTILITY ---------- Small Storage Unit Weapon Shielding > --- WEAPON ----------- Small Laser Particle Gun > --- INVENTORY -------- Wheel Compact Wheel Mining Claw [Rating: 8] Favorites ----------- Power Ion Engine Engine Ion Engine Propulsion Light Treads Treads Light Treads Utility Small Storage Unit Device Terrain Scanner Storage Small Storage Unit Protection Weapon Shielding Weapon Particle Gun Energy Gun Particle Gun Ballistic Gun Light Assault Rifle Build | -11 -10 -10 ------- Run | Yrd Mat Min Slots Evolved . | . . . Power . | . . . Propulsion . | . . . Utility . | . . . Weapon . | . . . Parts Attached 11 | 7 3 1 Power 2 | 2 . . Engine 2 | 2 . . Core . | . . . Reactor . | . . . Propulsion 2 | 2 . . Treads 2 | 2 . . Leg . | . . . Wheel . | . . . Hover . | . . . Flight . | . . . Utility 3 | 1 1 1 Device 1 | . . 1 Storage 1 | 1 . . Processor . | . . . Hackware . | . . . Protection 1 | . 1 . Artifact . | . . . Weapon 4 | 2 2 . Energy Gun 3 | 1 2 . Energy Cannon . | . . . Ballistic Gun 1 | 1 . . Ballistic Cannon . | . . . Launcher . | . . . Special Weapon . | . . . Impact Weapon . | . . . Slashing Weapon . | . . . Piercing Weapon . | . . . Special Melee Weapon . | . . . Unidentified Prototypes . | . . . Corrupted Parts 1 | . 1 . System Corruption 2 | . 2 . Parts Lost 5 | . 2 3 Power 1 | . . 1 Propulsion 2 | . . 2 Utility . | . . . Weapon 2 | . 2 . Highest Loss Streak 3 | . 2 3 To Critical Strikes . | . . . Average Backups 4 | 1 4 8 Power . | . . . Propulsion 2 | 1 2 2 Utility 1 | . 1 4 Weapon . | . . 1 Tool/Special . | . . . Unused Backups 8 | . 2 6 Power . | . . . Propulsion 3 | . 1 2 Utility 4 | . 1 3 Weapon 1 | . . 1 Tool/Special . | . . . Average Slot Usage (%) 94 | . 95 89 Engine 13 | . 14 9 Treads 27 | . 28 21 Device 1 | . . 13 Storage 14 | . 14 14 Protection 9 | . 10 . Energy Gun 24 | . 24 28 Ballistic Gun 2 | . 3 . Peak Build Rating 8 | 6 8 8 Average Rating 7 | 4 7 7 On Entrance 4 | . 6 8 Avg Prop Armor Cover (%) . | . . . Naked Turns . | . . . Heaviest Build 15 | 13 15 15 Greatest Support 40 | 40 40 40 Greatest Overweight (x) . | . . . Average Overweight (x) . | . . . Largest Inventory Capacity 8 | 8 8 8 Average Capacity 7 | 6 8 8 Most Carried 8 | 3 8 8 Average Carried 4 | 1 4 8 Final Capacity 8 | 8 8 8 Final Carried 8 | 2 8 8 Class Distribution -------------------- 100% | Mutant Dominant Class ---------------- Mutant | -10/Materials Mutant | -10/Mines Resources | -11 -10 -10 ----------- Run | Yrd Mat Min Matter Collected 226 | 116 110 . Remotely . | . . . Salvage Created 1033 | . 937 96 Parts 59 | . 51 8 Haulers Intercepted 2 | . 2 . Recyclers Shooed 2 | . 1 1 Parts Field Recycled . | . . . Retrieved Matter . | . . . Parts Self-Destructed . | . . . Prevented . | . . . Parts Restored . | . . . Kills | -11 -10 -10 ------- Run | Yrd Mat Min Combat Hostiles Destroyed 11 | . 7 4 Melee 1 | . 1 . Guns 8 | . 4 4 AOE 2 | . 2 . Classes Destroyed 9 | . 8 1 Worker 9 | . 9 . Builder 2 | . 2 . Tunneler 1 | . 1 . Hauler 2 | . 2 . Recycler 4 | . 4 . Operator 2 | . 2 . Watcher 1 | . 1 . Swarmer 2 | . . 2 Grunt 9 | . 7 2 Best Kill Streak 5 | . 5 4 Combat Bots Only 4 | . 2 4 Max Kills in Single Turn 2 | . 2 1 Gunslinging . | . . . Exploded 2 | . 2 . Melee 1 | . 1 . Uniques/NPCs Destroyed . | . . . Combat | -11 -10 -10 -------- Run | Yrd Mat Min Hostile Shots Fired 94 | . 54 40 Missed 22 | . 14 8 Hits 72 | . 40 32 Projectile 72 | . 40 32 Critical Strikes 3 | . 2 1 Damage Taken 898 | . 528 370 Core 253 | . 121 132 Absorbed by Shields . | . . . Redirected to Shielding 6 | . 6 . Core Remaining (%) 100 | 100 . . Volleys Fired 124 | . 101 23 Largest 2 | . 2 2 Hottest 105 | . 105 105 Shots Fired 169 | . 138 31 Gun 169 | . 138 31 Cannon . | . . . Launcher . | . . . Special . | . . . Kinetic 32 | . 32 . Thermal 119 | . 88 31 Explosive . | . . . Electromagnetic 18 | . 18 . Robot Hit Streak 9 | . 9 5 Robot Miss Streak 5 | . 5 3 Penetration Max . | . . . Secondary Targets . | . . . Shots Hit Robots 94 | . 77 17 Core Hits 46 | . 40 6 Critical Kills . | . . . Critical Parts Destroyed . | . . . Critical Strikes 3 | . 2 1 Burn 3 | . 2 1 Melee Attacks . | . . . Impact . | . . . Slashing . | . . . Piercing . | . . . Sneak Attacks . | . . . Combat Hostiles . | . . . Follow-up Attacks . | . . . Damage Inflicted 1429 | 2 1158 269 Guns 1304 | . 1039 265 Cannons . | . . . Explosions 108 | . 108 . Melee . | . . . Ramming 17 | 2 11 4 Kinetic 142 | . 142 . Thermal 1132 | . 867 265 Explosive . | . . . Electromagnetic 138 | . 138 . Impact . | . . . Slashing . | . . . Piercing . | . . . Highest Corruption 2 | . 2 2 Average Corruption 2 | . 2 2 Corruption Purged . | . . . Corruption Blocked . | . . . Effects 13 | . 12 1 Message Errors 4 | . 4 . Matter Fused 1 | . 1 . Heat Flow Errors 1 | . 1 . Energy Discharges 2 | . 2 . Data Loss (minor) 3 | . 2 1 Alerts 2 | . 2 . Overload Shots . | . . . Overflow Damage . | . . . Projectiles . | . . . Explosions . | . . . Melee . | . . . Knockbacks . | . . . Impact . | . . . Kinetic . | . . . Secondary . | . . . Self-Inflicted Damage . | . . . Shots . | . . . Rammed 6 | 1 3 2 Targets Rammed 6 | 1 3 2 Kicked . | . . . Crushed . | . . . Highest Temperature 602 | . 385 602 Average Temperature 157 | . 129 324 Received Heat Transfer 423 | . 321 102 Effects 15 | . 6 9 Shutdowns 1 | . 1 . Energy Bleed 4 | . 2 2 Interference 3 | . 3 . Matter Decay 2 | . . 2 Damage (minor) 3 | . . 3 Damage (core) 2 | . . 2 Siege Activations . | . . . Martial Activations . | . . . Shielding Activations . | . . . Robots Disrupted . | . . . Combat Hostiles . | . . . Robots Corrupted . | . . . Combat Hostiles . | . . . Parts Fried . | . . . Impact Corruptions . | . . . Robots Melted . | . . . Combat Hostiles . | . . . Parts Melted 3 | . 2 1 Heat Transferred 2683 | . 1991 692 Parts Sabotaged . | . . . Parts Stolen . | . . . Parts Stripped . | . . . Power Chain Reactions 1 | . 1 . Alert | -11 -10 -10 ------- Run | Yrd Mat Min Maximum Alert Level . | . . . Low Security (%) 100 | 100 100 100 Level 1 . | . . . Level 2 . | . . . Level 3 . | . . . Level 4 . | . . . Level 5 . | . . . High Security . | . . . Max Security . | . . . Peak Influence 80 | . 80 40 Initial 4 | . . 4 Average 25 | . 29 10 Influence Increases 475 | . 385 90 Destroy 0b10 Robot/C 220 | . 140 80 Destroy 0b10 Robot/NC 105 | . 105 . Destroy Leader 66 | . 56 10 Successful Hack 35 | . 35 . Disable Machine 30 | . 30 . Destroy Structure 4 | . 4 . Lose Combat Pursuer 15 | . 15 . Influence Decreases 435 | . 374 61 Entered New Map 7 | . . 7 Time Decay 378 | . 354 24 Lost Part 50 | . 20 30 Squads Dispatched 3 | . 3 . Investigation 2 | . 2 . Extermination . | . . . Reinforcement 1 | . 1 . Assault . | . . . Garrison . | . . . Intercept . | . . . Searches Triggered . | . . . Construction Impeded . | . . . Haulers Reinforced . | . . . Active Scanning Responses . | . . . Cargo Convoy Interrupts . | . . . Stealth | -11 -10 -10 --------- Run | Yrd Mat Min Distress Signals 2 | . 2 . Communications Jammed . | . . . Distress Signals . | . . . Times Spotted 25 | . 21 4 Peak Tracking Total 4 | . 3 4 Tactical Retreats 1 | . 1 . Traps | -11 -10 -10 ------- Run | Yrd Mat Min Traps Triggered 1 | . 1 . Indirectly . | . . . Trap Hack Attempts . | . . . Triggered . | . . . Disarmed . | . . . Reprogrammed . | . . . Reused . | . . . Traps Extracted . | . . . Installed . | . . . Triggered . | . . . Machines | -11 -10 -10 ---------- Run | Yrd Mat Min Machines Disabled 2 | . 2 . Max in Single Turn 1 | . 1 . Machines Repaired . | . . . Machines Dismantled . | . . . Machines Sabotaged . | . . . Overloaded Fab Kills . | . . . Hacking | -11 -10 -10 --------- Run | Yrd Mat Min Machines Accessed 4 | . 4 . Terminals 4 | . 4 . Fabricators . | . . . Repair Stations . | . . . Recycling Units . | . . . Scanalyzers . | . . . Garrison Access . | . . . Total Hacks 10 | . 10 . Successful 8 | . 8 . Failed 2 | . 2 . Catastrophic . | . . . Database Lockouts . | . . . Manual 10 | . 10 . Terminals 10 | . 10 . Fabricators . | . . . Repair Stations . | . . . Recycling Units . | . . . Scanalyzers . | . . . Garrison Access . | . . . Terminal Hacks 2 | . 2 . Branch Access Points 1 | . 1 . Terminal Index 1 | . 1 . Fabricator Hacks . | . . . Repair Station Hacks . | . . . Recycling Unit Hacks . | . . . Scanalyzer . | . . . Garrison Access Hacks . | . . . Unauthorized Hacks 6 | . 6 . Terminals 6 | . 6 . Botnet 4 | . 4 . Operators 2 | . 2 . Fabricators . | . . . Repair Stations . | . . . Recycling Units . | . . . Scanalyzers . | . . . Garrison Access . | . . . Data Cores Recovered . | . . . Used . | . . . Hacking Detections 2 | . 2 . Full Trace Events 2 | . 2 . Feedback Events . | . . . Feedback Blocked . | . . . Robot Schematics Acquired . | . . . Robots Built . | . . . Authchips . | . . . Time . | . . . Total Robot Build Rating . | . . . Part Schematics Acquired . | . . . Parts Built . | . . . Authchips . | . . . Time . | . . . Total Part Build Rating . | . . . Part Studies Acquired . | . . . Parts Repaired . | . . . Time . | . . . Parts Recycled . | . . . Recycled Matter . | . . . Retrieved Matter . | . . . Retrieved Components . | . . . Parts Scanalyzed . | . . . Part Schematics Acquired . | . . . Parts Damaged . | . . . Bothacking | -11 -10 -10 ------------ Run | Yrd Mat Min Used RIF Installer . | . . . Robots Hacked . | . . . Non-combat . | . . . Combat . | . . . Robot Hacks Applied . | . . . Relay Couplers Released . | . . . Fabnet Peak Effective % . | . . . Robots Rewired . | . . . Allies Hacked . | . . . Hacks Repelled . | . . . Allies | -11 -10 -10 -------- Run | Yrd Mat Min Total Allies . | . . . Largest Group . | . . . Highest-Rated Group . | . . . Highest-Rated Ally . | . . . Total Orders . | . . . Ally Attacks . | . . . Total Damage . | . . . Kills . | . . . Allies Corrupted . | . . . Allies Melted . | . . . Intel | -11 -10 -10 ------- Run | Yrd Mat Min Active Infowar (turns) 145 | . . 145 Terrain 145 | . . 145 Robot Analysis Total . | . . . Derelict Logs Recovered 1 | . . 1 Drone Launches . | . . . Drone Recoveries . | . . . Exploration | -11 -10 -10 ------------- Run | Yrd Mat Min Turns Passed 1190 | 70 970 150 Spaces Moved 371 | 38 294 39 Core 4 | 4 . . Treads 367 | 34 294 39 Legs . | . . . Wheels . | . . . Hover . | . . . Flight . | . . . Fastest Speed 50 | 50 160 160 Average Speed 158 | 148 160 160 Slowest Speed 160 | 160 160 160 Overloaded Moves . | . . . Propulsion Burnouts . | . . . Robots Hopped . | . . . Potential Cave-ins . | . . . Cave-ins Triggered . | . . . Exploration Rate (%) 23 | 3 55 12 Regions Visited 2 Branch Regions 1 Pre-discovered Areas . | . . . Known Exits Taken 1 | . 1 . Unknown Exits Taken 1 | 1 . . Scrap Searched . | . . . Spaces Dug . | . . . Terrain Destroyed 3 | . 3 . Melee . | . . . Projectile . | . . . AOE 3 | . 3 . Terrain Rammed . | . . . Walls Destroyed . | . . . Machines Disabled . | . . . Actions | -11 -10 -10 --------- Run | Yrd Mat Min Total 801 | 48 660 93 Wait 276 | . 250 26 Move 369 | 37 293 39 Hop . | . . . Pick Up 10 | 2 8 . Fast Attach 9 | 6 3 . Attach . | . . . Detach . | . . . Swap 4 | 1 . 3 Drop 3 | 1 2 . Fire 124 | . 101 23 Melee . | . . . Ram . | . . . Kick . | . . . Crush 6 | 1 3 2 Escape Stasis . | . . . Rewire . | . . . Trap . | . . . Miscellaneous . | . . . Route ------- -11/Scrapyard -10/Materials (discovered 4 exits: [*Mat] / *Min x2 / [*Sub]) -10/Mines (discovered 1 exit: [*Mat]) History --------- Turn | Location | Event 5 | -11/Scrapyard | Discovered new exit (range 15) 71 | -11/Scrapyard | Entered Materials 321 | -10/Materials | Build established: Mutant 621 | -10/Materials | Discovered new exit (range 4) 895 | -10/Materials | Discovered new exit (range 8) 908 | -10/Materials | Discovered new exit (range 6) 927 | -10/Materials | Identified exit to Mines 1041 | -10/Materials | Entered Mines 1105 | -10/Mines | Learned Materials terminal intel 1112 | -10/Mines | Discovered new exit (range 11) 1143 | -10/Mines | Core integrity fell below 50% 1190 | -10/Mines | Core integrity fell below 20% 1192 | -10/Mines | Core destroyed Last Messages --------------- K-01 Serf collects debris. S-10 Pest destroyed. K-01 Serf collects debris. G-34 Mercenary suffers critical hit (Burn). Lgt. Treads destroyed. K-01 Serf collects debris. Overheating: Matter decay (-29). K-01 Serf collects debris. G-34 Mercenary overheating. Overheating: Terrain Scanner damaged (-6). G-34 Mercenary overheating. Sml. Laser melted. G-34 Mercenary destroyed. Overheating: Matter decay (-20). K-01 Serf collects debris. Overheating: Particle Gun damaged (-11). Overheating: Particle Gun damaged (-4). Overheating: Energy bleed (-1). Overheating: Core damaged (-27). Overheating: Core damaged (-40). Map ----- +----------------------------------------------------+ | ?????????????????????????????????????????????????? | | ?????????????????????????????????????????????????? | | ?????????????????????????????????????????????????? | | ?????????????????????????????????????????????????? | | ?????????????????????????????????????????????????? | | ?????????????????????????????????????????????????? | | ?????????????????????????????????????????????????? | | ?????????????????????????????????????????????????? | | ?????????????????????????????????????????????????? | | ?????????????????????????????????????????????????? | | ?????????????????????????????????????????????????? | | ?????????????????????????????????????????????????? | | ?????????????????????????????????? ??????????????? | | ????????????????????????????#????? ?????????????? | | ??????????????????????????????????? ?????????????? | | ??????????????????????????????????? ????????????? | | ??????????????????#?????????????? ? ??????????#?? | | ?????????????????????????????? ????? #???????????? | | ??????????????###?????????#?????????? ##?????????? | | ??????????????? ??????#???#?????? ? ##???????? | | ????????????????# ?????????????????? ##??????? | | ?????????????????# ????????????????? ###??#?? | | ????????????#????# ????????#?#??#???? ##???? | | ????????????????## ???####????#????? #???? | | ????????????##### #### ##########?# ??????? | | ????????????# ##@< ## ## ### #???????? | | ?????????? =%= r #???????? | | ?????????????????## [*% ## #???????? | | ??????????????????## =%= ### #?????#?? | | ????????????# ?????## =% ### #### #?????##? | | ??????????????????#?########?## ###?## #???????? | | ??????????????????????????????#####????# #???????? | | ??????????????????????????#??????????#?# #?????#?? | | ????????????????????????#??#???????????# #?####### | | ???????????????????????????????????????# #?# | | ????????????? ???????????????#????????## #?# | | ???????????????????????????????????????# #?# """ | | ???????????????????????????????????????# ### """ | | ???????????????????????#????????????#??# """ | | ???????????????????????????????#??#?##?##### | | ???????????????????????????????????????????####### | | ????????????????????????????????????????#????#???? | | ??????????????????????????????????????#??????????? | | ?????????????????????????????????????????????????? | | ????????????????????????????????#?????#??????????? | | ?????????????????????????????????????????????????? | | ?????????????????????????????????????##???#??????? | | ???????????????????????????????????????????#?????? | | ????????????????????????????????????????????????#? | | ?????????????????????????????????????????????????? | +----------------------------------------------------+ Best States ------------- Heat Dissipation 25 Energy Generation 10 Energy Capacity 250 Matter Stores 208 Matter Capacity 300 Sight Range 16 Terrain Scan Range 14 Terrain Scan Density 10 Weapon Shielding 33 Evasion (%) 40 Recoil Reduction 2 Item Schematics ----------------- None Robot Schematics ------------------ None Fabricated ------------ Nothing Repaired ---------- Nothing Studied --------- None Alien Tech Used ----------------- None Achievements -------------- None Challenges ------------ None Game ------ Seed TrapFactoryArray Manual? 0 Play Time 00:06:34 Cumulative 14.5 hours Start 2026.01.10 @ 14:00:50 End 2026.01.10 @ 14:06:43 Sessions 1 Manual Loads 0 Difficulty Rogue Special Mode None Game No. 21 Rogue 21 Adventurer 0 Explorer 0 Win Type - Total 0 Types 0/0/0/0/0/0/0/0/0/0 Lore% 9 Gallery% 21 Achievement% 23 Wizard Run 0 Options --------- Layout 1 ASCII 0 Keyboard 1 Movement Vi Keybinds 0 Fullscreen 1 Font 24/Smallcaps Map View 50x35 Zoom Use 0% Tactical HUD 0 Map Filters NONE Filters NONE Steam 1 RUN: 04d285f4-789d-4a96-b820-71cb1f0ff8cb